bitfinex/quotes_BTCUSD_20251208
["timestamp","ask_amount","ask_price","bid_price","bid_amount"]
[1765224621368,0.055,90463.0,90458.0,0.01105485]
[1765224621532,0.055,90463.0,90460.0,0.0110546]
[1765224621767,0.055,90463.0,90462.0,0.2855573]
[1765224621970,0.055,90463.0,90462.0,0.38402017]
[1765224621971,0.053,90463.0,90462.0,0.38402017]
[1765224622384,0.053,90463.0,90462.0,0.40622017]
[1765224622595,0.05,90463.0,90462.0,0.40622017]
[1765224622801,0.055,90463.0,90462.0,0.38402017]
[1765224623237,0.05,90463.0,90462.0,0.00161287]
[1765224623433,0.01105448,90461.0,90452.0,0.04369]
[1765224623979,0.23214309,90462.0,90452.0,0.04369]
[1765224624224,0.051,90463.0,90453.0,0.10790546]
[1765224624403,0.051,90463.0,90461.0,0.06447]
[1765224624813,0.05,90463.0,90462.0,0.06447]
[1765224625018,0.05,90463.0,90455.0,0.01105522]
[1765224625226,0.05,90463.0,90453.0,0.09846287]
[1765224625227,0.002,90463.0,90453.0,0.09846287]
[1765224625427,0.01305424,90463.0,90453.0,0.01266833]
[1765224625653,0.002,90461.0,90453.0,0.01266833]
[1765224626229,0.001,90463.0,90453.0,0.01266833]
[1765224626437,0.03325363,90468.0,90462.0,0.06447]
[1765224626643,1.1573679,90490.0,90462.0,0.06447]
[1765224626644,0.0222,90488.0,90473.0,0.01105302]
[1765224627010,0.01105167,90484.0,90473.0,0.23372537]
[1765224627219,0.01105167,90484.0,90474.0,0.01105289]
[1765224627421,0.23208499,90485.0,90474.0,0.01266576]
[1765224627631,0.01105118,90488.0,90476.0,0.01105265]
[1765224627836,0.01105143,90486.0,90484.0,0.04455]
[1765224628047,0.22103111,90485.0,90484.0,0.04455]
[1765224628503,0.22103111,90485.0,90480.0,0.04455]
[1765224628504,0.22103843,90482.0,90480.0,0.04455]
[1765224628754,0.01105131,90487.0,90474.0,0.01266576]
[1765224628956,0.01105131,90487.0,90473.0,0.04455]
[1765224628957,5.129e-05,90488.0,90487.0,0.22102622]
[1765224629204,5.129e-05,90488.0,90487.0,0.28710909]
[1765224629403,5.129e-05,90488.0,90487.0,0.16293287]
[1765224630461,0.00105129,90488.0,90487.0,0.16293287]
[1765224631328,0.00205129,90488.0,90487.0,0.16293287]
[1765224631535,0.00205129,90488.0,90487.0,0.00161287]
[1765224631981,0.00105129,90488.0,90487.0,0.00161287]
[1765224632183,0.00105129,90488.0,90487.0,0.16293287]
[1765224632389,5.129e-05,90488.0,90487.0,0.16293287]
[1765224632593,0.00105129,90488.0,90487.0,0.16293287]
[1765224634047,0.00205129,90488.0,90487.0,0.06608287]
[1765224634684,0.00205129,90488.0,90487.0,0.00161287]
[1765224635019,0.00205129,90488.0,90484.0,0.04455]
[1765224635223,0.00205129,90488.0,90487.0,0.225589]
[1765224636010,5.129e-05,90488.0,90487.0,0.225589]
[1765224636198,0.00105129,90488.0,90487.0,0.225589]
[1765224636425,5.129e-05,90488.0,90487.0,0.225589]
[1765224636852,0.00105129,90488.0,90487.0,0.225589]
[1765224637087,0.00205129,90488.0,90487.0,0.225589]
[1765224637296,0.22307507,90488.0,90487.0,0.225589]
[1765224637479,0.00105129,90488.0,90487.0,0.225589]
[1765224637846,0.00205129,90488.0,90487.0,0.225589]
[1765224640850,0.22307507,90488.0,90487.0,0.225589]
[1765224641047,0.32441507,90488.0,90487.0,0.225589]
[1765224641987,0.22307507,90488.0,90487.0,0.225589]
[1765224642607,0.22307507,90488.0,90487.0,0.424209]
[1765224642608,0.00205129,90488.0,90487.0,0.424209]
[1765224643982,0.00105129,90488.0,90487.0,0.424209]
[1765224644397,5.129e-05,90488.0,90487.0,0.424209]
[1765224644631,5.129e-05,90488.0,90487.0,0.425209]
[1765224645924,5.129e-05,90488.0,90487.0,0.42682187]
[1765224646076,5.129e-05,90488.0,90487.0,0.64784809]
[1765224646276,5.129e-05,90488.0,90487.0,0.42682187]
[1765224646689,5.129e-05,90488.0,90487.0,0.33280187]
[1765224646933,0.22107507,90488.0,90487.0,0.22820187]
[1765224647326,0.22107507,90488.0,90487.0,0.226589]
[1765224647612,5.129e-05,90488.0,90487.0,0.425209]
[1765224647949,5.129e-05,90488.0,90487.0,0.330189]
[1765224648149,5.129e-05,90488.0,90487.0,0.424209]
[1765224648602,5.129e-05,90488.0,90487.0,0.330189]
[1765224648813,0.00105129,90488.0,90487.0,0.330189]
[1765224649007,0.22207507,90488.0,90487.0,0.225589]
[1765224649630,0.22307507,90488.0,90487.0,0.225589]
[1765224649823,0.30276507,90488.0,90487.0,0.225589]
[1765224650071,0.32496507,90488.0,90487.0,0.225589]
[1765224650857,0.30276507,90488.0,90487.0,0.225589]
[1765224651201,0.30176507,90488.0,90487.0,0.225589]
[1765224651599,0.30076507,90488.0,90487.0,0.225589]
[1765224651803,0.30476507,90488.0,90487.0,0.225589]
[1765224652640,0.30676507,90488.0,90487.0,0.225589]
[1765224653897,0.32896507,90488.0,90487.0,0.225589]
[1765224656508,0.22707507,90488.0,90487.0,0.225589]
[1765224657163,0.32897507,90488.0,90487.0,0.225589]
[1765224658927,0.72998835,90488.0,90487.0,0.225589]
[1765224659356,0.74033139,90488.0,90487.0,0.225589]
[1765224659600,0.73833139,90488.0,90487.0,0.225589]
[1765224659988,0.74233139,90488.0,90487.0,0.225589]
[1765224660207,0.73833139,90488.0,90487.0,0.225589]
[1765224660588,0.63811811,90488.0,90487.0,0.225589]
[1765224660819,0.23107507,90488.0,90487.0,0.225589]
[1765224661741,0.30476507,90488.0,90487.0,0.225589]
[1765224662114,0.33096507,90488.0,90487.0,0.225589]
[1765224662313,0.30476507,90488.0,90487.0,0.225589]
[1765224663141,0.75444435,90488.0,90487.0,0.225589]
[1765224663352,0.75644435,90488.0,90487.0,0.225589]
[1765224663575,0.77078317,90488.0,90487.0,0.225589]
[1765224663782,0.74658317,90488.0,90487.0,0.225589]
[1765224663989,0.76878317,90488.0,90487.0,0.225589]
[1765224664195,0.74658317,90488.0,90487.0,0.225589]
[1765224664404,0.74258317,90488.0,90487.0,0.225589]
[1765224664614,0.63910389,90488.0,90487.0,0.225589]
[1765224664828,0.66130389,90488.0,90487.0,0.225589]
[1765224665007,0.67152507,90488.0,90487.0,0.225589]
[1765224665470,0.66852507,90488.0,90487.0,0.225589]
[1765224665980,0.67252507,90488.0,90487.0,0.225589]
[1765224666195,0.65496507,90488.0,90487.0,0.225589]
[1765224666416,0.30888507,90488.0,90487.0,0.225589]
[1765224666561,0.30688507,90488.0,90487.0,0.225589]
[1765224666779,0.28932507,90488.0,90487.0,0.225589]
[1765224667145,0.22807507,90488.0,90487.0,0.225589]
[1765224667353,0.22407507,90488.0,90487.0,0.225589]
[1765224667561,0.22707507,90488.0,90487.0,0.225589]
[1765224667829,0.22407507,90488.0,90487.0,0.225589]
[1765224668072,0.00305129,90488.0,90487.0,0.289329]
[1765224668198,0.00505129,90488.0,90487.0,0.380769]
[1765224668942,0.22607507,90488.0,90487.0,0.225589]
[1765224669098,0.22607507,90488.0,90487.0,0.289329]
[1765224670628,0.00305129,90488.0,90487.0,0.380769]
[1765224670828,0.00105129,90488.0,90487.0,0.60179522]
[1765224671403,0.00305129,90488.0,90487.0,0.60340809]
[1765224671573,0.00305129,90488.0,90487.0,0.38238187]
[1765224671796,0.00305129,90488.0,90487.0,0.60340809]
[1765224672979,0.00305129,90488.0,90487.0,0.38238187]
[1765224673802,0.00305129,90488.0,90487.0,0.60340809]
[1765224674145,0.00305129,90488.0,90487.0,0.62560809]
[1765224674348,0.00305129,90488.0,90487.0,0.60340809]
[1765224674796,5.129e-05,90488.0,90487.0,0.60340809]
[1765224675209,0.00105129,90488.0,90487.0,0.38338187]
[1765224675414,0.00105129,90488.0,90487.0,0.60440809]
[1765224679092,0.00105129,90488.0,90487.0,0.68913108]
[1765224679312,0.00105129,90488.0,90487.0,1.01213108]
[1765224679952,0.08268,90535.0,90487.0,1.01213108]
[1765224679953,0.22091461,90533.0,90507.0,0.62870037]
[1765224680206,0.0002891,90508.0,90507.0,0.71131324]
[1765224680393,0.0002891,90508.0,90507.0,0.80227324]
[1765224681598,0.0002891,90508.0,90507.0,0.80527324]
[1765224684691,0.0002891,90508.0,90507.0,0.78307324]
[1765224684951,0.0002891,90508.0,90507.0,0.80527324]
[1765224687032,0.0002891,90508.0,90507.0,0.78307324]
[1765224687795,0.0002891,90508.0,90507.0,0.80527324]
[1765224687999,0.0002891,90508.0,90507.0,0.70299025]
[1765224688210,0.0002891,90508.0,90507.0,0.72051025]
[1765224688819,0.0002891,90508.0,90507.0,0.49953287]
[1765224689061,0.22126404,90508.0,90507.0,0.49953287]
[1765224689274,0.0002891,90508.0,90507.0,0.49953287]
[1765224689537,0.0002891,90508.0,90507.0,0.39751025]
[1765224689752,0.0002891,90508.0,90507.0,0.08557287]
[1765224689953,0.0002891,90508.0,90507.0,0.17653287]
[1765224690570,0.0002891,90508.0,90507.0,0.39751025]
[1765224690978,0.0002891,90508.0,90507.0,0.41971025]
[1765224691439,0.0002891,90508.0,90507.0,0.39751025]
[1765224691648,0.0002891,90508.0,90507.0,0.48223324]
[1765224693473,0.0002891,90508.0,90507.0,0.46003324]
[1765224694419,0.0002891,90508.0,90507.0,0.17653287]
[1765224695050,0.0002891,90508.0,90507.0,0.08557287]
[1765224695219,0.22126404,90508.0,90507.0,0.08557287]
[1765224695627,0.22126404,90508.0,90507.0,0.003]
[1765224695858,0.24346404,90508.0,90507.0,0.003]
[1765224695999,0.22126404,90508.0,90507.0,0.003]
[1765224696442,0.31629404,90508.0,90507.0,0.003]
[1765224696806,0.2210018,90497.0,90496.0,0.04369]
[1765224697013,0.01104984,90499.0,90496.0,0.10713]
[1765224697411,0.23204675,90499.0,90498.0,0.06344]
[1765224699165,0.23204675,90499.0,90498.0,0.06544]
[1765224701242,0.22099478,90500.0,90498.0,0.06544]
[1765224701479,0.01104935,90503.0,90499.0,0.06344]
[1765224701695,0.26880691,90499.0,90498.0,0.002]
[1765224701898,0.29100691,90499.0,90498.0,0.002]
[1765224702090,0.22100912,90494.0,90493.0,0.01752]
[1765224702299,0.23207106,90490.0,90486.0,0.04257]
[1765224702581,0.32435378,90488.0,90480.0,0.05684026]
[1765224702790,0.32435378,90488.0,90480.0,0.01752]
[1765224703004,0.26289378,90488.0,90481.0,0.02971]
[1765224703186,0.26289378,90488.0,90482.0,0.01105192]
[1765224703385,0.04187,90488.0,90483.0,0.01105179]
[1765224703585,0.26289378,90488.0,90483.0,0.01105179]
[1765224703807,0.04187,90488.0,90484.0,0.01105167]
[1765224703991,0.04187,90488.0,90485.0,0.01105155]
[1765224704192,0.04187,90488.0,90484.0,0.01105167]
[1765224704403,0.0110507,90492.0,90487.0,0.45766647]
[1765224704648,0.2320673,90491.0,90487.0,0.225589]
[1765224704825,0.01105082,90491.0,90487.0,0.23664031]
[1765224705024,0.01105082,90491.0,90487.0,0.4576663]
[1765224705436,0.23207087,90490.0,90487.0,0.225589]
[1765224705627,0.23207043,90490.0,90487.0,0.225589]
[1765224705802,0.23207043,90490.0,90487.0,0.226589]
[1765224705986,0.23207043,90490.0,90487.0,0.225589]
[1765224706184,0.23207043,90490.0,90487.0,0.226589]
[1765224706576,0.23207043,90490.0,90487.0,0.225589]
[1765224706776,0.23207043,90490.0,90487.0,0.226589]
[1765224707433,0.01105082,90491.0,90487.0,0.45866471]
[1765224707655,0.22100771,90495.0,90489.0,0.23206996]
[1765224708243,0.22100771,90495.0,90487.0,0.23764031]
[1765224708244,0.01105094,90490.0,90487.0,0.226589]
[1765224708614,0.01105045,90494.0,90489.0,0.06489]
[1765224709057,0.2320624,90493.0,90489.0,0.07594106]
[1765224709434,0.0110507,90492.0,90489.0,0.06489]
[1765224709992,0.01104899,90506.0,90496.0,0.01105021]
[1765224710175,0.01104911,90505.0,90501.0,0.0110496]
[1765224710322,0.232031,90506.0,90505.0,0.04257]
[1765224710535,0.0002891,90508.0,90505.0,0.33949135]
[1765224710736,0.0002891,90508.0,90507.0,0.28586738]
[1765224710932,0.0002891,90508.0,90507.0,0.06489]
[1765224711191,0.0002891,90508.0,90507.0,0.16096]
[1765224711404,0.01104923,90504.0,90496.0,0.01105021]
[1765224711606,0.01104923,90504.0,90494.0,0.02857045]
[1765224711607,0.01104996,90498.0,90494.0,0.23852844]
[1765224711898,0.23204675,90499.0,90495.0,0.01105033]
[1765224712113,0.23204392,90501.0,90498.0,0.10746]
[1765224712306,0.01104972,90500.0,90498.0,0.10746]
[1765224712468,0.23204646,90500.0,90498.0,0.10746]
[1765224712652,0.22099691,90499.0,90498.0,0.10746]
[1765224713665,0.22100668,90495.0,90494.0,0.01752]
[1765224714322,0.22100484,90496.0,90494.0,0.08241]
[1765224714707,0.2320566,90497.0,90494.0,0.08241]
[1765224715023,0.01105009,90497.0,90494.0,0.08441]
[1765224715226,0.22100668,90495.0,90494.0,0.01752]
[1765224715589,0.22100668,90495.0,90494.0,0.01952]
[1765224715775,0.22100668,90495.0,90494.0,0.01752]
[1765224716177,0.22100668,90495.0,90494.0,0.01952]
[1765224717564,0.22100668,90495.0,90494.0,0.01752]
[1765224717708,0.22100668,90495.0,90494.0,0.01852]
[1765224717910,0.22100668,90495.0,90494.0,0.01752]
[1765224718335,0.22100668,90495.0,90494.0,0.001]
[1765224718540,0.26259668,90495.0,90494.0,0.001]
[1765224718772,0.22100668,90495.0,90494.0,0.001]
[1765224719776,0.22100668,90495.0,90494.0,0.06589]
[1765224720078,0.22100668,90495.0,90494.0,0.16196]
[1765224720278,0.22100668,90495.0,90494.0,0.06589]
[1765224720606,0.22100668,90495.0,90494.0,0.06489]
[1765224720798,0.22200668,90495.0,90494.0,0.06489]
[1765224721003,0.001,90495.0,90494.0,0.37397199]
[1765224721589,0.001,90495.0,90494.0,0.39617199]
[1765224721793,0.2320503,90498.0,90494.0,0.37397199]
[1765224721997,0.01104899,90506.0,90499.0,0.01104984]
[1765224722173,0.01104886,90507.0,90502.0,0.23203897]
[1765224722373,0.22099279,90501.0,90499.0,0.08646]
[1765224722563,0.22099279,90501.0,90500.0,0.03531]
[1765224722789,0.22099279,90501.0,90500.0,0.09315]
[1765224722993,0.22099279,90501.0,90496.0,0.02857021]
[1765224722994,0.2210018,90497.0,90496.0,0.01752]
[1765224723449,0.2210018,90497.0,90496.0,0.07536]
[1765224723983,0.01104947,90502.0,90496.0,0.08641021]
[1765224724183,0.23204362,90501.0,90498.0,0.01104996]
[1765224724486,0.23204362,90501.0,90496.0,0.33803426]
[1765224724487,0.2209992,90499.0,90496.0,0.33803426]
[1765224724603,0.2209992,90499.0,90497.0,0.08646]
[1765224724803,0.23203727,90503.0,90497.0,0.08646]
[1765224724804,0.01104838,90511.0,90499.0,0.01104984]
[1765224725004,0.23231278,90508.0,90507.0,0.05784]
[1765224725456,0.23231278,90508.0,90507.0,0.1443]
[1765224726111,0.0002891,90508.0,90507.0,0.1443]
[1765224726726,0.0002891,90508.0,90507.0,0.36527738]
[1765224726931,0.0002891,90508.0,90507.0,0.1443]
[1765224727383,0.0012891,90508.0,90507.0,0.1443]
[1765224727687,0.0012891,90508.0,90501.0,0.23204044]
[1765224727688,0.22098955,90503.0,90501.0,0.03932026]
[1765224728093,0.22098959,90502.0,90501.0,0.03932026]
[1765224728840,0.22099447,90500.0,90499.0,0.00161287]
[1765224729027,0.22099447,90500.0,90499.0,0.04107232]
[1765224729206,0.01104947,90502.0,90499.0,0.05945287]
[1765224729544,0.01104947,90502.0,90501.0,0.05784]
[1765224729897,0.23204125,90502.0,90501.0,0.05784]
[1765224730945,0.001,90502.0,90501.0,0.14591287]
[1765224731154,0.001,90502.0,90501.0,0.3669049]
[1765224731360,0.001,90502.0,90501.0,0.3891049]
[1765224731806,0.001,90502.0,90501.0,0.51054042]
[1765224731952,0.001,90502.0,90501.0,0.45162789]
[1765224733870,0.22090737,90536.0,90507.0,0.28350037]
[1765224734090,0.22090737,90536.0,90507.0,0.70338324]
[1765224734091,0.23196203,90533.0,90507.0,0.70338324]
[1765224734323,0.01104594,90531.0,90507.0,0.78247324]
[1765224734701,0.23196225,90532.0,90507.0,0.78247324]
[1765224734904,0.23196477,90531.0,90507.0,0.78247324]
[1765224735298,9e-05,90535.0,90507.0,0.78247324]
[1765224735513,0.01113545,90535.0,90507.0,0.86102328]
[1765224735752,0.01104557,90534.0,90507.0,0.86102328]
[1765224736165,0.23204449,90535.0,90507.0,0.86102328]
[1765224736385,9e-05,90535.0,90507.0,0.86302328]
[1765224736610,9e-05,90535.0,90507.0,0.78447324]
[1765224736810,9e-05,90535.0,90507.0,0.86321513]
[1765224737227,9e-05,90535.0,90507.0,0.86121513]
[1765224737444,9e-05,90535.0,90507.0,0.78847324]
[1765224738835,9e-05,90535.0,90507.0,1.40402124]
[1765224739829,9e-05,90535.0,90507.0,1.40502124]
[1765224740453,0.01104557,90534.0,90507.0,1.13850524]
[1765224740665,0.01104594,90531.0,90507.0,0.91570924]
[1765224740891,0.2209213,90530.0,90507.0,0.91570924]
[1765224741089,0.01104618,90529.0,90507.0,0.91570924]
[1765224741297,0.23196504,90531.0,90507.0,0.91570924]
[1765224741708,0.01104581,90532.0,90507.0,0.91570924]
[1765224741913,0.0110463,90528.0,90507.0,0.91570924]
[1765224742119,0.01104655,90526.0,90507.0,0.76727324]
[1765224742326,0.01104667,90525.0,90507.0,0.68723025]
[1765224742552,0.0110463,90528.0,90507.0,0.72695025]
[1765224742961,0.23197205,90529.0,90507.0,0.72695025]
[1765224743168,0.0110463,90528.0,90507.0,0.78947324]
[1765224743397,0.23197205,90529.0,90507.0,0.78947324]
[1765224743595,0.0110474,90519.0,90507.0,0.56849586]
[1765224743798,0.01104777,90516.0,90507.0,0.8484637]
[1765224744008,0.04638629,90543.0,90507.0,0.8484637]
[1765224744009,0.01104813,90513.0,90507.0,0.48277287]
[1765224744213,0.0110485,90510.0,90507.0,0.15977287]
[1765224744417,0.01104838,90511.0,90507.0,0.38075025]
[1765224745040,0.01104825,90512.0,90507.0,0.38075025]
[1765224745258,0.01104838,90511.0,90507.0,0.38075025]
[1765224745480,0.0110485,90510.0,90507.0,0.38075025]
[1765224745646,0.01104838,90511.0,90507.0,0.38075025]
[1765224745647,0.23201618,90511.0,90507.0,0.38075025]
[1765224745850,0.01104825,90512.0,90507.0,0.37475025]
[1765224746052,0.01104838,90511.0,90507.0,0.41735525]
[1765224746777,0.01104825,90512.0,90507.0,0.41735525]
[1765224747202,0.23201554,90513.0,90507.0,0.41735525]
[1765224747559,0.01104838,90511.0,90507.0,0.41735525]
[1765224747763,0.23201728,90511.0,90507.0,0.41735525]
[1765224748804,0.01104825,90512.0,90507.0,0.41735525]
[1765224749146,0.22126404,90508.0,90507.0,0.194765]
[1765224749422,0.0002891,90508.0,90507.0,0.115675]
[1765224749568,0.0002891,90508.0,90507.0,0.41574238]
[1765224751309,0.26280404,90508.0,90507.0,0.042605]
[1765224751914,0.22126404,90508.0,90507.0,0.042605]
[1765224752317,0.0002891,90508.0,90507.0,0.042605]
[1765224752742,0.22126404,90508.0,90507.0,0.042605]
[1765224753010,0.0012891,90508.0,90507.0,0.042605]
[1765224753191,0.0002891,90508.0,90507.0,0.042605]
[1765224753622,0.0022891,90508.0,90507.0,0.042605]
[1765224754315,0.0022891,90508.0,90507.0,0.26358238]
[1765224755181,0.0022891,90508.0,90507.0,0.042605]
[1765224755968,0.0022891,90508.0,90507.0,0.26358238]
[1765224756178,0.22326404,90508.0,90507.0,0.042605]
[1765224757285,0.0022891,90508.0,90507.0,0.26358238]
[1765224757690,0.0022891,90508.0,90507.0,0.042605]
[1765224758434,0.22326404,90508.0,90507.0,0.042605]
[1765224759945,0.0022891,90508.0,90507.0,0.042605]
[1765224760576,0.22326404,90508.0,90507.0,0.042605]
[1765224761229,0.0022891,90508.0,90507.0,0.26358238]
[1765224761441,0.0022891,90508.0,90507.0,0.098155]
[1765224761661,0.22326404,90508.0,90507.0,0.098155]
[1765224763436,0.0022891,90508.0,90507.0,0.098155]
[1765224763648,0.0022891,90508.0,90507.0,0.40229238]
[1765224764364,0.0022891,90508.0,90507.0,0.40390525]
[1765224765291,0.0022891,90508.0,90507.0,0.09976787]
[1765224765466,0.22326404,90508.0,90507.0,0.04421787]
[1765224765667,0.22126404,90508.0,90507.0,0.044605]
[1765224766284,0.22126404,90508.0,90507.0,0.042605]
[1765224766812,0.0012891,90508.0,90507.0,0.042605]
[1765224767039,0.0002891,90508.0,90507.0,0.39872238]
[1765224767172,0.0002891,90508.0,90507.0,0.40033525]
[1765224767514,0.0032891,90508.0,90507.0,7.01890025]
[1765224768456,0.0032891,90508.0,90507.0,6.79792287]
[1765224768581,0.22426404,90508.0,90507.0,6.79792287]
[1765224768781,0.22126404,90508.0,90507.0,6.79892287]
[1765224768979,0.22126404,90508.0,90507.0,6.79992287]
[1765224769188,0.22126404,90508.0,90507.0,6.71676287]
[1765224769451,0.22126404,90508.0,90507.0,6.71476287]
[1765224769754,0.22226404,90508.0,90507.0,6.71476287]
[1765224770296,0.0012891,90508.0,90507.0,6.79792287]
[1765224770794,0.22226404,90508.0,90507.0,6.71476287]
[1765224771257,0.0012891,90508.0,90507.0,6.79792287]
[1765224771843,0.0012891,90508.0,90507.0,7.01890025]
[1765224773944,0.0012891,90508.0,90507.0,7.42662324]
[1765224774146,0.01104533,90536.0,90507.0,7.42662324]
[1765224774147,0.01113545,90535.0,90531.0,0.2319644]
[1765224774322,9e-05,90535.0,90534.0,0.08459]
[1765224774549,0.22099904,90535.0,90534.0,0.08459]
[1765224774725,0.22099904,90535.0,90534.0,0.03261]
[1765224775336,0.22299904,90535.0,90534.0,0.03261]
[1765224775531,0.22099904,90535.0,90534.0,0.03261]
[1765224775947,0.22299904,90535.0,90534.0,0.03261]
[1765224776512,0.22299904,90535.0,90523.0,0.2209373]
[1765224776513,0.01104594,90531.0,90520.0,0.05923772]
[1765224776716,0.22249862,90535.0,90506.0,0.08316]
[1765224776717,0.01104838,90511.0,90507.0,6.72202059]
[1765224776952,0.22097249,90509.0,90507.0,6.66278287]
[1765224777833,0.12742,90508.0,90507.0,6.66117]
[1765224778033,0.18833232,90508.0,90507.0,6.66117]
[1765224778249,0.51133232,90508.0,90507.0,6.66417]
[1765224778456,0.51133232,90508.0,90507.0,6.1617773]
[1765224778708,0.51133232,90508.0,90507.0,6.00372969]
[1765224778924,0.51433232,90508.0,90507.0,6.00372969]
[1765224779123,0.63315813,90508.0,90507.0,6.00372969]
[1765224779332,0.49947885,90508.0,90507.0,6.00372969]
[1765224779532,0.50447885,90508.0,90507.0,6.00372969]
[1765224780096,0.49947885,90508.0,90507.0,6.00372969]
[1765224780293,0.52167885,90508.0,90507.0,6.00372969]
[1765224780496,0.51333232,90508.0,90507.0,6.00372969]
[1765224780710,0.53085232,90508.0,90507.0,6.00372969]
[1765224780912,0.52885232,90508.0,90507.0,6.00372969]
[1765224781107,0.6151316,90508.0,90507.0,6.00372969]
[1765224781330,0.6403316,90508.0,90507.0,6.00372969]
[1765224781823,0.6373316,90508.0,90507.0,6.00372969]
[1765224782107,0.6241316,90508.0,90507.0,6.00372969]
[1765224782692,0.6463316,90508.0,90507.0,6.00372969]
[1765224783294,0.6433316,90508.0,90507.0,6.00372969]
[1765224783714,0.6463316,90508.0,90507.0,6.00372969]
[1765224784940,0.6463316,90508.0,90507.0,5.42928001]
[1765224785711,0.6463316,90508.0,90507.0,4.72928001]
[1765224785923,0.6241316,90508.0,90507.0,4.72928001]
[1765224787186,1.60626414,90508.0,90507.0,3.63324118]
[1765224787317,1.44646414,90508.0,90507.0,3.63324118]
[1765224787519,0.61068486,90508.0,90507.0,3.63324118]
[1765224787961,0.60768486,90508.0,90507.0,3.63324118]
[1765224788134,0.60168486,90508.0,90507.0,3.63324118]
[1765224788338,0.60568486,90508.0,90507.0,3.63324118]
[1765224788532,0.61368486,90508.0,90507.0,3.63324118]
[1765224789224,0.53364187,90508.0,90507.0,3.63324118]
[1765224789424,0.53685232,90508.0,90507.0,3.63324118]
[1765224789698,0.54085232,90508.0,90507.0,3.63324118]
[1765224789841,0.52333232,90508.0,90507.0,3.63324118]
[1765224790036,0.17813232,90508.0,90507.0,3.63324118]
[1765224790220,0.51465232,90508.0,90507.0,3.63324118]
[1765224790425,0.51765232,90508.0,90507.0,3.63324118]
[1765224791043,0.19165232,90508.0,90507.0,3.63324118]
[1765224791245,0.20585232,90508.0,90507.0,3.63324118]
[1765224791450,0.53285232,90508.0,90507.0,3.63324118]
[1765224791900,0.6393316,90508.0,90507.0,3.63324118]
[1765224792562,0.6423316,90508.0,90507.0,3.63324118]
[1765224793344,0.86330654,90508.0,90507.0,3.63324118]
[1765224795530,0.75482726,90508.0,90507.0,3.63324118]
[1765224796719,0.75482726,90508.0,90507.0,3.63335728]
[1765224799120,0.73262726,90508.0,90507.0,3.63335728]
[1765224799389,0.75482726,90508.0,90507.0,3.63335728]
[1765224799648,0.73730726,90508.0,90507.0,3.63335728]
[1765224799871,0.58768726,90508.0,90507.0,3.63335728]
[1765224802068,0.005,90508.0,90507.0,3.77464728]
[1765224802278,0.005,90508.0,90507.0,3.77626015]
[1765224802619,0.003,90508.0,90507.0,3.77626015]
[1765224803025,0.005,90508.0,90507.0,3.77626015]
[1765224803410,0.003,90508.0,90507.0,3.63497015]
[1765224803649,0.003,90508.0,90507.0,3.69106015]
[1765224803854,0.01104801,90514.0,90508.0,0.23202368]
[1765224804059,0.23199855,90518.0,90513.0,0.05609]
[1765224804257,0.22095788,90515.0,90513.0,0.05609]
[1765224805357,0.22096029,90514.0,90513.0,0.05809]
[1765224805575,0.22096029,90514.0,90513.0,0.05609]
[1765224805785,0.22097249,90509.0,90508.0,0.08681287]
[1765224806040,0.22097249,90509.0,90508.0,0.00161287]
[1765224807678,0.22097249,90509.0,90508.0,0.00561287]
[1765224808859,0.23201151,90513.0,90508.0,0.29372619]
[1765224809092,0.01104813,90513.0,90510.0,0.05609]
[1765224809336,0.22096613,90512.0,90510.0,0.05609]
[1765224809482,0.22096761,90511.0,90510.0,0.05609]
[1765224810059,0.01104801,90514.0,90510.0,0.05609]
[1765224810302,0.01128552,90516.0,90513.0,0.05609]
[1765224810512,0.01104813,90513.0,90510.0,0.08681287]
[1765224810728,0.01104813,90513.0,90510.0,0.00161287]
[1765224810894,0.01104813,90513.0,90512.0,0.05609]
[1765224811307,0.23201086,90513.0,90512.0,0.05609]
[1765224812436,0.22096761,90511.0,90510.0,0.00161287]
[1765224813031,0.22096761,90511.0,90510.0,0.00461287]
[1765224813209,0.22096761,90511.0,90510.0,0.00161287]
[1765224813640,0.22096761,90511.0,90510.0,0.00461287]
[1765224813934,0.43204154,90511.0,90510.0,0.003]
[1765224814152,0.77724154,90511.0,90510.0,0.003]
[1765224814788,0.22097494,90508.0,90507.0,3.63335728]
[1765224814946,0.60552726,90508.0,90507.0,3.63335728]
[1765224815280,0.68339726,90508.0,90507.0,3.63335728]
[1765224815502,0.79187654,90508.0,90507.0,3.63335728]
[1765224815986,0.79287654,90508.0,90507.0,3.63335728]
[1765224816706,0.79287654,90508.0,90507.0,3.63535728]
[1765224822074,0.68439726,90508.0,90507.0,3.63535728]
[1765224832461,0.58368726,90508.0,90507.0,3.63535728]
[1765224832650,0.67424726,90508.0,90507.0,3.63535728]
[1765224834203,0.69644726,90508.0,90507.0,3.63535728]
[1765224834481,0.71396726,90508.0,90507.0,3.63535728]
[1765224834929,0.82244654,90508.0,90507.0,3.63535728]
[1765224835190,0.69176726,90508.0,90507.0,3.63535728]
[1765224838168,0.71396726,90508.0,90507.0,3.63535728]
[1765224841994,0.80968796,90508.0,90507.0,2.65407363]
[1765224842212,5.91816724,90508.0,90507.0,2.51480199]
[1765224842427,5.95537219,90508.0,90507.0,2.4168351]
[1765224842673,3.04847219,90508.0,90507.0,2.4168351]
[1765224842882,3.04673219,90508.0,90507.0,2.4168351]
[1765224843093,3.01852724,90508.0,90507.0,2.4168351]
[1765224843303,4.14162724,90508.0,90507.0,2.4168351]
[1765224843945,4.22300909,90508.0,90507.0,2.4168351]
[1765224844153,1.00480909,90508.0,90507.0,2.4168351]
[1765224844356,3.14850909,90508.0,90507.0,2.4168351]
[1765224844516,3.15650909,90508.0,90507.0,2.4168351]
[1765224844863,2.20450909,90508.0,90507.0,2.4168351]
[1765224845290,3.53330909,90508.0,90507.0,2.4168351]
[1765224846282,4.09370909,90508.0,90507.0,2.4168351]
[1765224847242,5.43230909,90508.0,90507.0,2.4168351]
[1765224847962,3.99470909,90508.0,90507.0,2.4168351]
[1765224848159,4.21260909,90508.0,90507.0,2.4168351]
[1765224848387,3.56710909,90508.0,90507.0,2.4168351]
[1765224849246,4.93630909,90508.0,90507.0,2.4168351]
[1765224849603,4.93628866,90508.0,90507.0,2.4168351]
[1765224850221,4.75238866,90508.0,90507.0,2.4168351]
[1765224850423,0.99526866,90508.0,90507.0,2.4168351]
[1765224850631,0.91388681,90508.0,90507.0,2.4168351]
[1765224850919,0.5845586,90508.0,90507.0,2.4168351]
[1765224851128,0.8853586,90508.0,90507.0,2.4168351]
[1765224851302,0.8773586,90508.0,90507.0,2.4168351]
[1765224851458,0.8723586,90508.0,90507.0,2.4168351]
[1765224851666,0.8813586,90508.0,90507.0,2.4168351]
[1765224852066,0.90515225,90508.0,90507.0,2.4168351]